bitfinex-derivatives/quotes_ETHF0:USTF0_20260226
["timestamp","ask_amount","ask_price","bid_price","bid_amount"]
[1772077506130,1.1896256,2057.4,2056.9,1.73271007]
[1772077506427,2.8995041,2057.4,2056.9,1.73271007]
[1772077508529,1.70621303,2057.4,2056.9,1.73271007]
[1772077508730,1.71495039,2057.5,2056.9,1.73271007]
[1772077508930,4.14535039,2057.5,2056.9,1.73271007]
[1772077510130,1.7098785,2057.4,2056.9,1.73271007]
[1772077511126,1.71495039,2057.5,2056.9,1.73271007]
[1772077511330,4.14535039,2057.5,2056.9,1.73271007]
[1772077511624,1.7098785,2057.4,2056.9,1.73271007]
[1772077513227,1.7098785,2057.3,2056.9,1.73271007]
[1772077513424,1.7098785,2057.4,2056.9,1.73271007]
[1772077513831,1.7098785,2057.3,2056.9,1.73271007]
[1772077514031,8.4681488,2057.2,2056.9,0.00433666]
[1772077514231,2.8995041,2057.2,2056.9,1.73271007]
[1772077515934,2.4304,2057.2,2056.9,1.73271007]
[1772077516621,1.7098785,2057.4,2056.9,1.73271007]
[1772077517233,2.4304,2057.3,2056.9,1.73271007]
[1772077517736,2.4304,2057.2,2056.9,1.73271007]
[1772077517936,1.7098785,2057.4,2056.9,1.73271007]
[1772077518338,2.4304,2057.3,2056.9,1.73271007]
[1772077518532,1.71495039,2057.5,2056.9,1.73271007]
[1772077518836,8.00116971,2057.4,2056.9,1.73271007]
[1772077519039,0.00507189,2057.5,2056.9,1.73271007]
[1772077519238,4.55841239,2057.4,2056.9,1.73271007]
[1772077519441,0.00507189,2057.5,2056.9,1.73271007]
[1772077521339,2.43547189,2057.5,2056.9,1.73271007]
[1772077522541,0.00507189,2057.5,2056.9,1.73271007]
[1772077523336,4.14535039,2057.5,2056.9,1.73271007]
[1772077524042,1.7098785,2057.4,2056.9,1.73271007]
[1772077524538,4.1402785,2057.4,2056.9,1.73271007]
[1772077526236,2.4304,2057.3,2056.9,1.73271007]
[1772077528145,2.4304,2057.2,2056.9,1.73271007]
[1772077528340,2.00898029,2057.1,2056.7,1.91469902]
[1772077529142,2.4304,2057.0,2056.7,1.91469902]
[1772077529343,2.4304,2057.0,2056.7,1.91944497]
[1772077529538,2.00898029,2057.1,2056.7,1.91944497]
[1772077529746,2.4304,2057.0,2056.7,1.91944497]
[1772077530042,2.00898029,2057.1,2056.7,1.91944497]
[1772077530244,2.4304,2056.9,2056.7,1.91944497]
[1772077530644,2.00898029,2057.1,2056.7,1.91944497]
[1772077531346,2.4304,2056.9,2056.7,1.91944497]
[1772077531545,2.00898029,2057.2,2056.7,1.91944497]
[1772077531746,2.4304,2057.0,2056.7,1.91944497]
[1772077532148,2.00898029,2057.2,2056.7,1.91944497]
[1772077532348,2.4304,2057.0,2056.7,1.91944497]
[1772077532647,4.38753746,2057.0,2056.7,1.91944497]
[1772077532846,2.4304,2056.8,2056.7,1.91944497]
[1772077533845,2.4304,2056.8,2056.5,2.0052763]
[1772077534048,1.95713746,2056.8,2056.5,2.0052763]
[1772077534242,1.95713746,2056.8,2056.3,2.0052763]
[1772077534447,1.95713746,2056.7,2056.3,2.0052763]
[1772077534949,2.4304,2056.5,2056.3,2.01154394]
[1772077535452,2.4304,2056.4,2056.3,2.01154394]
[1772077535651,1.95713746,2056.7,2056.3,2.01154394]
[1772077536151,2.27049946,2056.4,2056.3,2.01154394]
[1772077536557,1.95713746,2057.1,2056.3,2.01154394]
[1772077536852,1.95713746,2057.3,2056.3,2.01154394]
[1772077537048,5.53363424,2057.2,2056.3,2.01154394]
[1772077537249,5.53363424,2057.1,2056.3,2.01154394]
[1772077537451,1.95713746,2057.3,2056.3,2.01154394]
[1772077537752,7.49043986,2057.2,2056.3,2.01154394]
[1772077537952,1.95713746,2057.2,2056.3,2.01154394]
[1772077538451,1.95713746,2057.3,2056.3,2.01154394]
[1772077538650,5.5331257,2057.2,2056.3,2.01154394]
[1772077538853,1.95713746,2057.3,2056.3,2.01154394]
[1772077539053,5.53312547,2057.2,2056.3,2.01154394]
[1772077539254,1.95713746,2057.3,2056.3,2.01154394]
[1772077539553,5.53303752,2057.2,2056.3,2.01154394]
[1772077539752,1.95713746,2057.3,2056.3,2.01154394]
[1772077539945,5.53303752,2057.2,2056.3,2.01154394]
[1772077540150,1.95713746,2057.3,2056.3,2.01154394]
[1772077540455,5.53303752,2057.2,2056.3,2.01154394]
[1772077540755,1.95713746,2057.3,2056.3,2.01154394]
[1772077540954,7.49007807,2057.2,2056.3,2.01154394]
[1772077541152,1.95713746,2057.2,2056.3,2.01154394]
[1772077557270,1.95196584,2057.0,2056.3,2.01154394]
[1772077557868,1.95196584,2057.1,2056.3,2.01154394]
[1772077558069,1.95196584,2057.3,2056.3,2.01154394]
[1772077558271,1.95196584,2057.4,2056.5,0.26425221]
[1772077558470,5.53942584,2057.3,2056.5,0.26425221]
[1772077558671,1.95196584,2057.4,2056.5,0.26425221]
[1772077558866,5.53941119,2057.3,2056.5,0.26425221]
[1772077559063,1.95196584,2057.4,2056.5,0.26425221]
[1772077562467,1.95196584,2057.4,2056.4,0.20663858]
[1772077562664,1.95196584,2057.2,2056.3,0.00626764]
[1772077562864,1.95196584,2057.2,2056.3,0.20700319]
[1772077563166,1.95196584,2057.1,2056.3,0.20700319]
[1772077563564,1.95196584,2057.3,2056.5,0.19991878]
[1772077571476,1.95196584,2057.3,2056.7,0.13760786]
[1772077572777,1.95196584,2057.3,2056.8,0.12529773]
[1772077572981,1.95703773,2057.5,2056.8,0.12529773]
[1772077573678,1.95196584,2057.6,2056.8,0.12529773]
[1772077573876,1.95196584,2058.0,2057.1,1.97481716]
[1772077574181,1.95196584,2057.8,2057.2,1.97481716]
[1772077574682,1.95779394,2057.8,2057.2,1.97481716]
[1772077575585,0.0058281,2057.8,2057.2,1.97481716]
[1772077575979,1.95779394,2057.8,2057.2,1.97481716]
[1772077577779,1.95196584,2058.0,2057.4,1.97481716]
[1772077578180,1.95196584,2058.0,2056.9,7.59512732]
[1772077578381,1.95196584,2058.0,2057.0,1.97481716]
[1772077578785,1.95674576,2058.0,2057.0,1.97481716]
[1772077581392,1.95196584,2057.8,2057.0,1.97481716]
[1772077582191,1.95196584,2057.8,2057.2,1.97481716]
[1772077587797,2.01861179,2057.9,2057.5,1.95991231]
[1772077591801,2.01861179,2057.9,2057.4,1.95991231]
[1772077599304,0.00477992,2058.0,2057.5,1.97416666]
[1772077599505,1.92332062,2058.1,2057.7,1.97416666]
[1772077600211,1.8466105,2058.1,2057.7,1.97416666]
[1772077600409,1.85024541,2058.1,2057.7,1.97416666]
[1772077602207,1.92332062,2058.1,2057.7,1.97416666]
[1772077603212,1.92897432,2058.1,2057.7,1.97416666]
[1772077603513,1.92897432,2058.1,2057.5,1.97416666]
[1772077603708,1.92897432,2058.1,2057.4,1.97416666]
[1772077604815,1.92897432,2058.1,2057.5,1.97416666]
[1772077607913,1.92897432,2058.1,2057.6,1.19059291]
[1772077608115,1.92897432,2058.1,2057.3,6.875]
[1772077608116,1.92332062,2058.5,2057.9,1.97416666]
[1772077608313,1.92332062,2058.5,2058.1,1.97416666]
[1772077609218,1.92843218,2058.5,2058.1,1.97884798]
[1772077610820,0.00511156,2058.5,2058.1,1.97884798]
[1772077611115,1.92332062,2058.6,2058.1,1.97884798]
[1772077611717,1.92332062,2058.7,2058.2,1.19059291]
[1772077611918,1.92827907,2058.7,2058.1,0.00468132]
[1772077614017,1.92827907,2058.7,2058.1,1.97884798]
[1772077617328,2.10311033,2058.3,2057.6,1.93498835]
[1772077618320,2.10311033,2058.3,2057.6,1.94064598]
[1772077620530,1.19059291,2058.0,2057.1,7.59512732]
[1772077620833,2.10311033,2057.9,2057.2,1.93498835]
[1772077621631,2.10311033,2057.9,2057.2,1.93910224]
[1772077621826,2.10311033,2057.7,2057.2,0.00411389]
[1772077622032,4.07019634,2058.3,2056.8,1.93498835]
[1772077622033,2.10311033,2057.5,2056.8,1.93498835]
[1772077622928,2.10311033,2057.5,2056.8,1.93951595]
[1772077623832,2.10311033,2057.3,2056.6,1.93498835]
[1772077624229,2.10311033,2057.1,2056.4,1.93498835]
[1772077624435,2.10311033,2057.1,2056.3,1.93498835]
[1772077624728,2.10876116,2057.1,2056.3,1.93854019]
[1772077626830,2.10876116,2057.1,2056.4,1.93498835]
[1772077627431,2.10311033,2057.3,2056.8,1.93498835]
[1772077628530,2.10669023,2057.3,2056.8,1.93498835]
[1772077632642,2.10311033,2057.5,2057.0,1.93498835]
[1772077632841,2.10311033,2058.0,2057.1,1.19059291]
[1772077633039,2.10311033,2058.0,2057.2,1.93498835]
[1772077633942,2.10737074,2058.0,2057.2,1.93498835]
[1772077634341,1.19059291,2057.9,2057.2,1.93498835]
[1772077634543,2.10311033,2057.8,2057.2,1.93498835]
[1772077636347,2.10311033,2057.4,2056.7,1.93498835]
[1772077637248,2.10311033,2057.2,2056.7,1.93498835]
[1772077638946,2.10311033,2057.2,2056.4,1.93498835]
[1772077647948,2.02700529,2057.4,2056.4,1.93498835]
[1772077651146,2.02700529,2057.4,2056.5,2.03690225]
[1772077651447,0.00366547,2057.4,2056.5,2.03690225]
[1772077653243,0.00366547,2057.4,2056.6,2.01286256]
[1772077653737,0.00366547,2057.4,2056.8,2.01286256]
[1772077654946,1.90743085,2057.4,2056.8,2.01286256]
[1772077655349,1.90743085,2057.4,2056.6,2.01286256]
[1772077655544,1.90743085,2057.4,2056.3,14.43967916]
[1772077655851,1.90376538,2057.2,2056.4,2.01286256]
[1772077662058,0.00366547,2057.4,2056.4,2.01286256]
[1772077662059,0.00366547,2057.4,2056.4,9.60798988]
[1772077662255,1.90743085,2057.4,2056.5,2.01286256]
[1772077664457,1.90743085,2057.4,2056.5,9.60798988]
[1772077664664,1.90743085,2057.4,2056.6,2.01286256]
[1772077665363,1.90376538,2057.8,2056.9,2.01286256]
[1772077665563,1.90376538,2057.8,2057.1,2.01286256]
[1772077669860,1.90802579,2058.0,2057.1,2.01286256]
[1772077677666,2.01357657,2057.8,2057.0,1.94701506]
[1772077677867,0.00426041,2058.0,2057.0,1.94701506]
[1772077677868,2.01357657,2057.6,2057.0,1.94701506]
[1772077678064,2.01357657,2057.9,2057.0,1.94701506]
[1772077678269,2.01357657,2057.7,2057.1,1.94701506]
[1772077680569,2.01357657,2057.7,2057.0,8.78001506]
[1772077681164,2.01357657,2057.7,2057.0,1.94701506]
[1772077684368,2.01357657,2057.9,2057.0,1.94701506]
[1772077697879,2.01357657,2057.9,2057.0,9.54214238]
[1772077698082,2.01357657,2057.9,2057.1,1.94701506]
[1772077698282,2.01357657,2057.9,2057.3,1.94701506]
[1772077699587,1.99100344,2058.2,2057.3,1.94701506]
[1772077700585,0.00443061,2058.2,2057.4,1.94701506]
[1772077700781,1.97399508,2058.2,2057.4,1.94701506]
[1772077703288,1.97399508,2058.2,2057.7,1.94701506]
[1772077704591,1.9329334,2058.4,2057.9,1.94701506]
[1772077705389,1.9285643,2058.6,2058.1,1.94701506]
[1772077705687,1.93238043,2058.6,2058.1,1.95290987]
[1772077706788,1.18990258,2058.4,2057.8,1.86011077]
[1772077706986,1.90107191,2058.1,2057.6,6.842]
[1772077707189,1.90107191,2058.1,2057.5,1.86011077]
[1772077707792,1.90107191,2058.1,2057.5,1.86528858]
[1772077708591,1.0410426,2058.1,2057.5,1.86528858]
[1772077720998,5.2665359,2058.6,2057.5,1.86528858]
[1772077720999,5.2665359,2058.6,2057.7,1.18990258]
[1772077721198,1.05737918,2058.4,2057.8,1.84451106]
[1772077721399,1.05737918,2058.4,2057.9,1.84451106]
[1772077726701,1.0265036,2058.6,2057.9,1.84451106]
[1772077726898,6.46993263,2058.5,2057.9,1.84451106]
[1772077727097,1.01875742,2058.5,2057.9,1.84451106]
[1772077727299,6.47077905,2058.4,2057.9,1.84451106]
[1772077727499,1.02316791,2058.6,2057.9,1.84451106]
[1772077727698,6.47132079,2058.5,2057.9,1.84451106]
[1772077727903,1.01935178,2058.5,2057.9,1.84451106]
[1772077728199,0.00381613,2058.6,2057.9,1.84451106]
[1772077728399,5.45278236,2058.5,2057.9,1.84451106]
[1772077728596,0.00381613,2058.6,2057.9,1.84451106]
[1772077730403,0.00381613,2058.6,2058.1,1.84451106]
[1772077732203,0.96441981,2058.6,2058.1,1.84451106]
[1772077732407,0.00381613,2058.6,2058.1,1.84451106]
[1772077734203,2.17440102,2058.6,2057.8,8.71551106]
[1772077734502,0.97362081,2058.2,2057.6,1.84451106]
[1772077734703,0.97362081,2058.0,2057.5,1.84968887]
[1772077736403,1.07564791,2058.2,2057.6,1.18990258]
[1772077736598,1.07564791,2058.2,2057.7,1.76448386]
[1772077737007,1.07047679,2058.4,2057.7,1.76448386]
[1772077737204,5.48350593,2058.3,2057.7,1.76448386]
[1772077737406,5.14945944,2058.6,2057.9,1.76448386]
[1772077737604,6.55441709,2058.5,2057.9,1.76448386]
[1772077737805,1.06610732,2058.3,2057.9,1.76448386]
[1772077738609,1.06610732,2058.3,2057.6,1.18990258]
[1772077738610,1.06462222,2058.1,2057.6,1.76448386]
[1772077741603,1.05569492,2058.2,2057.6,1.76448386]
[1772077742709,4.07207409,2058.5,2057.8,1.18990258]
[1772077742910,5.54874684,2058.4,2057.9,1.76448386]
[1772077743111,0.00381613,2058.6,2057.9,1.76448386]
[1772077743409,0.00381613,2058.6,2058.1,1.76448386]
[1772077743910,1.03801456,2058.5,2058.0,1.76448386]
[1772077745011,1.031051,2058.3,2057.8,1.76448386]
[1772077746908,1.02846973,2058.1,2057.6,1.76448386]
[1772077747114,1.02846973,2057.9,2057.5,1.76966167]
[1772077751512,0.99900587,2058.0,2057.5,1.76966167]
[1772077753116,0.98814943,2057.9,2057.5,1.76966167]
[1772077755323,0.86428972,2058.4,2057.5,1.76966167]
[1772077755518,1.18990258,2058.0,2057.5,1.76966167]
[1772077756321,1.19529895,2058.0,2057.5,1.76966167]
[1772077756921,1.37684093,2057.9,2057.5,1.76966167]
[1772077757816,1.15011407,2057.7,2057.3,2.00066776]
[1772077758222,2.34001665,2057.8,2057.3,2.00066776]
[1772077758420,1.18990258,2057.8,2057.3,2.00066776]
[1772077758823,1.18990258,2057.8,2057.3,2.00435533]
[1772077760328,1.15011407,2057.9,2057.3,2.00435533]
[1772077762126,0.00539637,2058.0,2057.3,2.00435533]
[1772077762426,1.10444111,2058.0,2057.3,2.00435533]
[1772077762725,1.13955563,2057.9,2057.3,2.00435533]
[1772077763122,2.32620591,2058.0,2057.3,2.00435533]
[1772077763422,1.13630333,2058.0,2057.3,2.00435533]
[1772077765627,0.00539637,2058.0,2057.3,2.00435533]
[1772077767828,0.00539637,2058.0,2057.5,2.39381879]
[1772077770823,1.0664112,2058.5,2057.5,2.39381879]
[1772077771730,1.07158672,2058.5,2057.5,2.39381879]
[1772077776336,1.07158672,2058.5,2057.6,2.46297967]
[1772077776831,0.00517552,2058.5,2057.6,2.46297967]
[1772077777135,0.00517552,2058.5,2057.8,2.46297967]
[1772077777535,1.0552689,2058.5,2057.8,2.46297967]
[1772077777934,1.04175748,2058.3,2057.6,4.04951132]
[1772077778128,1.04175748,2058.3,2057.5,2.46297967]
[1772077782539,1.04175748,2058.3,2057.6,2.46297967]
[1772077788551,1.04175748,2058.3,2057.5,4.04951132]
[1772077788751,0.95360597,2058.0,2057.4,2.46297967]
[1772077789955,9.40469425,2058.2,2057.4,2.46297967]
[1772077790355,0.94251135,2058.1,2057.4,2.46297967]
[1772077790556,8.466,2058.2,2057.4,2.46297967]
[1772077790956,9.40046084,2058.2,2057.4,2.46297967]
[1772077791855,9.40046084,2058.2,2057.5,2.46297967]
[1772077793452,0.92896905,2058.1,2057.5,2.46297967]
[1772077797460,8.466,2058.2,2057.6,2.35127043]
[1772077798060,9.36751206,2058.2,2057.6,2.35127043]
[1772077798659,0.9017375,2058.1,2057.6,2.35127043]
[1772077800861,0.9017375,2058.1,2057.4,2.35127043]
[1772077801262,0.88324932,2057.6,2056.9,2.35127043]
[1772077801560,0.884421,2057.5,2056.9,2.35127043]
[1772077802263,0.87663396,2057.4,2056.9,0.00606752]
[1772077802764,0.87371869,2057.1,2056.3,2.35127043]
[1772077802956,2.29617758,2057.0,2056.3,2.35127043]
[1772077803661,2.30028339,2057.0,2056.3,2.35482787]
[1772077811470,2.29617758,2056.8,2056.3,0.00355744]
[1772077811769,2.29617758,2056.8,2056.2,2.27347189]
[1772077812572,2.29617758,2056.8,2056.2,2.27925602]
[1772077817378,2.30028339,2057.0,2056.2,2.27925602]
[1772077819177,2.29617758,2056.7,2055.7,2.35127043]
[1772077819580,2.29617758,2056.4,2055.7,2.35127043]
[1772077819980,8.527,2056.6,2055.7,2.35127043]
[1772077820181,10.82317758,2056.6,2055.7,2.3558684]
[1772077820380,2.29617758,2056.5,2055.7,2.3558684]
[1772077822078,2.29617758,2056.6,2055.8,2.35127043]
[1772077822283,2.29617758,2056.7,2055.8,2.35127043]
[1772077824781,2.30028339,2057.0,2055.8,2.35127043]
[1772077824981,0.00410581,2057.0,2056.1,2.35127043]
[1772077825181,2.30028339,2057.0,2056.1,2.35127043]
[1772077825381,2.30028339,2057.0,2056.4,2.35127043]
[1772077827886,2.28520612,2056.8,2056.3,2.32154783]
[1772077832186,2.28520612,2056.9,2056.3,2.32154783]
[1772077832486,2.28931193,2057.0,2056.3,2.32154783]
[1772077833688,3.15360165,2057.0,2056.3,2.32154783]
[1772077833893,2.28931193,2057.0,2056.3,2.32154783]
[1772077834098,2.28931193,2057.0,2056.5,2.27557515]
[1772077836788,0.00410581,2057.0,2056.5,2.27557515]
[1772077836992,2.1967205,2057.0,2056.5,2.27557515]
[1772077838494,0.00410581,2057.0,2056.5,2.27557515]
[1772077839793,2.1967205,2057.0,2056.5,2.27557515]
[1772077844192,5.24040107,2057.3,2056.2,4.02667294]
[1772077844193,4.04894695,2057.3,2056.7,2.27557515]
[1772077844398,10.70761469,2057.4,2056.7,2.27557515]
[1772077845292,10.71360273,2057.4,2056.7,2.27557515]
[1772077846295,2.19261469,2057.3,2056.7,2.27557515]
[1772077855303,2.19261469,2057.0,2056.5,6.30224809]
[1772077855504,2.19261469,2057.0,2056.5,2.27557515]
[1772077855805,2.1083239,2057.2,2056.5,2.27557515]
[1772077859511,10.62931194,2057.4,2056.7,2.16020136]
[1772077860007,2.1083239,2057.3,2056.7,2.16020136]
[1772077865810,2.1083239,2057.6,2057.1,2.16020136]
[1772077866613,3.29977802,2057.8,2057.1,2.16020136]
[1772077866814,0.00366247,2057.8,2057.4,2.16020136]
[1772077867013,0.00366247,2057.8,2057.4,2.16651185]
[1772077867410,11.36324748,2058.1,2057.4,2.16651185]
[1772077867614,2.1083239,2057.8,2057.4,0.00631049]
[1772077867813,2.1083239,2057.8,2057.4,2.16651185]
[1772077868014,9.25492358,2058.1,2057.4,2.16651185]
[1772077868214,11.36324748,2058.1,2057.4,2.16651185]
[1772077868410,2.1083239,2058.0,2057.4,2.16651185]
[1772077873722,2.1083239,2058.0,2057.4,0.00631049]
[1772077874022,2.1083239,2057.6,2057.1,2.16020136]
[1772077875026,2.1083239,2057.6,2057.1,2.166045]
[1772077875521,2.1083239,2057.6,2057.1,0.00584364]
[1772077875926,2.1083239,2057.6,2057.1,2.166045]
[1772077876324,1.19145412,2057.2,2056.6,2.16020136]
[1772077876527,2.1083239,2057.1,2056.6,2.16020136]
[1772077877425,2.1083239,2057.1,2056.6,2.16577596]
[1772077881128,2.1083239,2057.3,2056.6,2.16577596]
[1772077886028,2.1083239,2057.3,2056.6,0.0055746]
[1772077887427,2.15091869,2057.0,2056.2,2.13477684]
[1772077887734,2.15091869,2056.8,2056.2,2.13477684]
[1772077888529,2.15091869,2056.8,2056.2,2.14030904]
[1772077896642,10.71834831,2056.9,2056.2,2.14030904]
[1772077896937,8.609,2056.9,2056.2,2.14030904]
[1772077898240,10.71834831,2056.9,2056.2,2.14030904]
[1772077902648,2.10934831,2056.8,2056.2,0.0055322]
[1772077902844,2.10934831,2056.8,2056.0,2.06782163]
[1772077903644,2.10934831,2056.8,2055.8,2.06782163]
[1772077903846,2.10934831,2056.8,2055.8,2.07181214]
[1772077922369,2.10934831,2056.8,2055.9,1.86072645]
[1772077922869,1.88809166,2056.7,2055.8,1.86471696]
[1772077923970,1.88809166,2056.5,2055.8,0.00399051]
[1772077924170,8.621,2056.4,2055.8,1.86471696]
[1772077925867,1.89406983,2056.5,2055.8,1.86471696]
[1772077926375,0.00597817,2056.5,2055.9,1.86072645]
[1772077926774,1.89406983,2056.5,2055.9,1.86072645]
[1772077927074,10.51209166,2056.7,2056.0,1.86072645]
[1772077928173,10.51616766,2056.7,2056.0,1.86072645]
[1772077930075,0.004076,2056.7,2056.1,5.90964853]
[1772077930272,1.88809166,2056.9,2056.1,5.90964853]
[1772077930273,1.88809166,2056.9,2056.2,1.86072645]
[1772077931272,1.89172307,2056.9,2056.2,1.86072645]
[1772077932778,1.89172307,2056.9,2056.3,1.86072645]
[1772077934278,0.00363141,2056.9,2056.3,1.86072645]
[1772077942986,1.88809166,2057.3,2056.5,1.86072645]
[1772077943186,1.88809166,2057.3,2056.6,1.86072645]
[1772077943886,1.89430535,2057.3,2056.6,1.86072645]
[1772077944386,0.00621369,2057.3,2056.6,1.86072645]
[1772077945388,1.89430535,2057.3,2056.7,1.86072645]
[1772077945687,1.19112432,2057.2,2056.7,1.86072645]
[1772077945988,1.79044349,2057.1,2056.5,1.7935931]
[1772077948784,1.79044349,2056.9,2056.3,4.04892208]
[1772077948982,1.79044349,2056.9,2056.4,1.7935931]
[1772077951989,1.79044349,2056.9,2056.2,1.7935931]
[1772077955292,1.79044349,2056.9,2056.3,1.78175343]
[1772077957391,11.62988757,2057.0,2056.3,1.78175343]
[1772077957593,8.674,2057.0,2056.7,1.78175343]
[1772077958894,2.62532864,2056.8,2055.9,1.89612404]
[1772077959190,1.19112432,2056.8,2055.9,1.89612404]
[1772077959493,0.00104291,2056.7,2055.9,1.89612404]
[1772077960693,0.09321837,2056.5,2055.9,1.89612404]
[1772077961190,0.31204233,2056.1,2055.4,7.083]
[1772077961494,1.76476325,2056.5,2055.7,1.78175343]
[1772077961792,1.19112432,2056.4,2055.7,1.78175343]
[1772077962093,1.76476325,2056.3,2055.7,1.78175343]
[1772077962294,1.76476325,2056.3,2055.7,1.78611167]
[1772077962686,10.45776325,2056.6,2055.8,1.78175343]
[1772077963086,8.693,2056.6,2056.0,1.78175343]
[1772077964198,10.45776325,2056.6,2056.0,1.78175343]
[1772077965297,8.693,2056.6,2056.0,1.78175343]
[1772077966195,1.76476325,2056.7,2056.0,1.78175343]
[1772077966400,8.695,2056.9,2056.1,1.78175343]
[1772077967200,10.45976325,2056.9,2056.1,1.78175343]
[1772077970401,1.76476325,2056.8,2056.1,1.78175343]
[1772077970603,10.45976325,2056.9,2056.1,1.78175343]
[1772077972907,1.76476325,2056.8,2056.1,1.78175343]
[1772077976108,2.02323157,2057.1,2056.1,1.78175343]
[1772077979617,2.02323157,2057.1,2056.2,1.95264087]
[1772077979818,2.02944526,2057.3,2056.2,1.95264087]
[1772077991126,2.02944526,2057.3,2056.2,8.02562462]
[1772077991327,2.02323157,2057.1,2056.3,1.95264087]
[1772077994130,2.02323157,2057.2,2056.3,1.95264087]
[1772077994325,2.02944526,2057.3,2056.4,1.95264087]
[1772077994531,0.00621369,2057.3,2056.5,1.95264087]
[1772077994727,0.00621369,2057.3,2056.7,1.95264087]
[1772077996430,2.02944526,2057.3,2056.7,1.95264087]
[1772077999533,2.02944526,2057.3,2056.5,1.95264087]
[1772078004428,2.02944526,2057.3,2056.3,1.95264087]
[1772078004633,2.02323157,2057.1,2056.3,1.95264087]
[1772078011234,12.74337857,2057.2,2056.0,1.80652582]
[1772078011235,1.80419415,2056.9,2056.0,1.80652582]
[1772078011443,1.80419415,2056.8,2056.0,1.80652582]
[1772078012940,1.91705294,2057.1,2056.0,1.80652582]
[1772078013440,1.91705294,2057.1,2056.1,1.85010642]
[1772078013642,1.91705294,2057.2,2056.2,1.85010642]
[1772078017543,1.91705294,2057.2,2056.3,7.084]
[1772078017848,10.63226663,2057.3,2056.4,1.85010642]
[1772078018350,1.91705294,2057.2,2056.4,1.85010642]
[1772078023758,1.91705294,2057.2,2056.0,26.85010642]
[1772078023759,1.91705294,2057.0,2056.0,26.85010642]
[1772078024051,1.91705294,2056.9,2056.1,1.85010642]
[1772078030758,5.99040896,2057.1,2056.1,1.85010642]
[1772078030959,1.91705294,2057.1,2056.1,1.85010642]
[1772078031458,1.91705294,2057.1,2056.2,1.85010642]
[1772078044662,5.97159619,2056.9,2056.0,25.0]
[1772078044865,1.89824017,2056.7,2056.0,25.0]
[1772078045362,4.07335602,2056.6,2056.0,25.0]
[1772078045665,1.89824017,2056.5,2056.0,25.0]
[1772078045865,1.89824017,2056.4,2056.0,25.0]
[1772078047563,8.83,2056.3,2056.0,6.70169335]
[1772078047763,8.83,2056.3,2056.0,5.99999335]
[1772078047963,8.83,2056.3,2056.0,4.62339335]
[1772078048167,8.83,2056.3,2056.0,3.22739335]
[1772078048363,8.83,2056.3,2056.0,1.84384335]
[1772078048664,8.83,2056.3,2056.0,3.35e-06]
[1772078048961,1.34584143,2056.2,2056.0,3.35e-06]
[1772078052769,1.34584143,2056.2,2054.8,2.04682061]
[1772078052969,1.38937911,2056.1,2055.2,2.04682061]
[1772078053764,1.38937911,2056.1,2055.2,2.05027343]
[1772078054165,1.38937911,2056.1,2055.4,2.04606348]
[1772078054568,1.38937911,2056.1,2055.6,2.04768271]
[1772078054771,1.38937911,2056.1,2055.8,2.04768271]
[1772078055170,1.38937911,2056.1,2055.7,2.04768271]
[1772078057267,8.919,2056.0,2055.7,2.04768271]
[1772078059270,10.28191495,2056.0,2055.7,2.04768271]
[1772078059667,1.36439093,2055.9,2055.6,2.03358281]
[1772078060572,1.36439093,2055.9,2055.4,2.0324809]
[1772078060974,8.919,2056.0,2055.6,2.0324809]
[1772078061376,8.01700001,2056.0,2055.8,2.0324809]
[1772078062266,1.34242343,2056.4,2055.9,2.03174843]
[1772078062469,8.984,2056.2,2055.9,2.03174843]
[1772078065180,8.984,2056.2,2056.1,2.04873587]
[1772078065375,8.91137604,2056.2,2056.1,2.04873587]
[1772078065677,1.49318322,2056.5,2056.1,2.04873587]
[1772078065876,1.49318322,2056.5,2056.1,17.04873922]
[1772078066380,1.49318322,2056.5,2056.1,2.04873587]
[1772078066880,1.49318322,2056.5,2055.3,2.71987451]
[1772078067079,1.49318322,2056.5,2055.4,2.71987451]
[1772078067681,1.49318322,2056.5,2055.6,2.71987451]
[1772078068981,1.49318322,2056.5,2055.7,15.00000335]
[1772078069182,1.90834002,2056.4,2055.7,15.00000335]
[1772078069382,1.90834002,2056.2,2055.7,17.71987786]
[1772078070080,1.90834002,2056.2,2055.7,2.71987451]
[1772078070677,1.90834002,2056.2,2055.8,15.00000335]
[1772078070882,1.90834002,2056.2,2055.5,2.71987451]
[1772078075783,1.90834002,2056.2,2055.6,17.39429367]
[1772078076081,1.90834002,2056.2,2055.6,2.61799486]
[1772078076985,1.8698407,2056.1,2055.6,2.61799486]
[1772078080888,1.8698407,2056.1,2055.7,14.77629881]
[1772078081085,1.8698407,2056.1,2055.7,17.39429367]
[1772078086095,1.8698407,2056.1,2055.7,13.87429881]
[1772078086695,1.8698407,2056.1,2055.7,16.49229367]
[1772078088897,10.89983808,2056.0,2055.7,16.49229367]
[1772078089904,10.89983808,2056.0,2055.7,14.60209902]
[1772078093602,1.8903697,2055.9,2055.7,11.98410416]
[1772078094298,10.97101343,2056.0,2055.7,14.60209902]
[1772078094801,10.97101343,2056.0,2055.7,11.98410416]
[1772078095001,10.97101343,2056.0,2055.7,14.60209902]
[1772078095298,1.88670623,2055.9,2055.7,11.98410416]
[1772078095500,10.97670623,2056.0,2055.7,14.60209902]
[1772078096503,10.97670623,2056.0,2055.7,2.61799486]
[1772078097503,9.09,2056.0,2055.7,2.61799486]
[1772078100702,1.6495385,2056.2,2055.9,2.64882021]
[1772078100893,6.11003403,2056.3,2055.9,2.64882021]
[1772078100894,10.8605385,2056.3,2055.9,2.64882021]
[1772078101097,11.91590723,2056.3,2056.0,11.98410416]
[1772078101595,2.70490723,2056.2,2056.0,11.98410416]
[1772078101796,11.92290723,2056.1,2056.0,11.51541718]
[1772078102412,2.70490723,2056.0,2055.5,2.64882021]
[1772078102601,2.70490723,2055.8,2055.5,2.64882021]
[1772078102800,2.71112727,2055.8,2055.5,2.64882021]
[1772078104006,0.00622004,2055.8,2055.5,2.64882021]
[1772078105002,2.70490723,2056.3,2055.5,2.64882021]
[1772078105203,9.229,2056.1,2055.5,2.64882021]
[1772078105408,9.229,2056.1,2055.5,7.347]
[1772078105808,9.23,2056.3,2055.5,7.347]
[1772078106104,9.23540394,2056.3,2055.5,7.347]
[1772078107009,9.23540394,2056.3,2055.6,0.58564751]
[1772078109903,12.89285829,2056.3,2055.6,0.58564751]
[1772078110706,0.00540394,2056.3,2055.6,0.58564751]
[1772078110904,15.59814403,2056.7,2055.6,0.58564751]
[1772078110905,9.245,2056.7,2055.6,0.58564751]
[1772078111103,9.245,2056.7,2055.8,0.58830768]
[1772078111104,3.66055982,2056.6,2055.8,0.58830768]
[1772078112008,3.66664416,2056.6,2055.8,0.58830768]
[1772078112406,3.66091081,2056.5,2055.8,7.94030768]
[1772078112712,3.66091081,2056.5,2055.9,0.57686942]
[1772078113012,3.6635623,2056.1,2055.7,0.57686942]
[1772078113204,3.6635623,2056.3,2055.7,0.57686942]
[1772078113510,3.66389794,2056.2,2055.7,0.57686942]
[1772078113912,9.248,2056.4,2055.7,0.57686942]
[1772078113913,12.91189794,2056.4,2055.7,0.57686942]